bitfinex-derivatives/quotes_SOLF0:USTF0_20241021
["timestamp","ask_amount","ask_price","bid_price","bid_amount"]
[1729526096975,5.0,164.58,164.57,3.0386]
[1729526098175,5.0,164.58,164.56,3.0387]
[1729526099170,5.0,164.58,164.49,5.0]
[1729526099381,5.0,164.58,164.57,3.0386]
[1729526100775,5.0,164.58,164.49,6.325]
[1729526100977,5.0,164.58,164.56,3.0387]
[1729526102477,3.0387,164.57,164.54,3.039]
[1729526102783,5.0,164.58,164.46,5.0]
[1729526103082,3.0388,164.57,164.46,5.0]
[1729526103676,3.0388,164.57,164.54,3.0391]
[1729526105282,5.0,164.56,164.54,3.0391]
[1729526107182,3.039,164.55,164.53,3.0394]
[1729526107393,3.039,164.55,164.46,5.0]
[1729526107783,3.039,164.55,164.52,3.0394]
[1729526108386,3.039,164.55,164.46,5.0]
[1729526108591,5.0,164.56,164.53,3.0393]
[1729526109589,5.0,164.56,164.52,3.0395]
[1729526110186,3.0391,164.55,164.52,3.0395]
[1729526112390,3.0391,164.55,164.53,3.0394]
[1729526113383,5.0,164.56,164.53,3.0394]
[1729526113585,8.0389,164.56,164.53,3.0393]
[1729526114092,5.0,164.56,164.53,3.0393]
[1729526114603,5.0,164.56,164.46,5.0]
[1729526114790,5.0,164.56,164.47,6.081]
[1729526116589,8.039,164.56,164.53,3.0393]
[1729526116787,5.0,164.56,164.53,3.0393]
[1729526117388,8.0389,164.56,164.53,3.0393]
[1729526117588,5.0,164.56,164.54,3.039]
[1729526118288,3.0386,164.57,164.54,3.039]
[1729526118494,6.8652711,164.6,164.57,3.0386]
[1729526118690,5.0,164.58,164.57,3.0386]
[1729526119892,6.8652711,164.6,164.59,3.0383]
[1729526120089,11.8652711,164.6,164.59,3.0383]
[1729526120395,11.8652711,164.6,164.51,6.0793]
[1729526121298,11.8652711,164.6,164.58,3.0383]
[1729526121603,8.0813711,164.6,164.52,6.0789]
[1729526122395,8.0813711,164.6,164.57,3.0385]
[1729526123000,8.0813711,164.6,164.59,3.0383]
[1729526125289,8.0813711,164.6,164.5,5.0]
[1729526125493,8.0813711,164.6,164.58,3.0383]
[1729526126901,8.0813711,164.6,164.5,11.0796]
[1729526127496,8.0813711,164.6,164.5,5.0]
[1729526128502,8.0813711,164.6,164.59,3.0383]
[1729526130996,3.0813711,164.6,164.59,3.0383]
[1729526131202,5.0,164.64,164.52,6.079]
[1729526131402,5.0,164.64,164.61,3.0379]
[1729526131696,5.0,164.63,164.61,3.0379]
[1729526134002,5.0,164.63,164.54,5.0]
[1729526134203,8.0376,164.63,164.6,3.0379]
[1729526134508,5.54770622,164.66,164.55,6.0778]
[1729526134697,12.25490622,164.66,164.63,3.0374]
[1729526135203,9.21790622,164.66,164.55,8.3627]
[1729526135503,7.96040622,164.66,164.64,3.0372]
[1729526135698,2.98040622,164.66,164.58,4.98]
[1729526135899,3.8563,164.7,164.59,6.0765]
[1729526136204,13.70985972,164.69,164.59,6.0765]
[1729526136705,8.0164,164.69,164.66,3.0368]
[1729526137097,16.74625972,164.69,164.66,3.0368]
[1729526137304,8.72985972,164.68,164.66,3.0368]
[1729526137503,3.08071812,164.68,164.66,3.0368]
[1729526137805,8.0164,164.69,164.59,6.0765]
[1729526138393,3.0364,164.69,164.59,6.0765]
[1729526138597,3.0364,164.69,164.66,3.0369]
[1729526138997,3.0364,164.69,164.59,6.0765]
[1729526139195,3.0364,164.69,164.58,4.98]
[1729526139196,8.72985972,164.73,164.58,4.98]
[1729526139399,8.72985972,164.73,164.58,8.08655287]
[1729526139706,8.72985972,164.73,164.72,3.0359]
[1729526139905,3.09627164,164.77,164.7,4.98]
[1729526140102,1.3502,164.78,164.7,4.98]
[1729526140702,1.3502,164.78,164.75,3.0352]
[1729526140703,3.07648687,164.78,164.75,3.0352]
[1729526140899,3.0346,164.79,164.75,3.0352]
[1729526141510,6.02815205,164.79,164.7,4.98]
[1729526141700,2.99355205,164.79,164.7,4.98]
[1729526141899,3.0344,164.8,164.7,4.98]
[1729526142207,6.08233056,164.8,164.7,4.98]
[1729526142401,4.98,164.81,164.7,4.98]
[1729526142600,8.0142,164.81,164.7,7.2506]
[1729526143207,11.04116901,164.81,164.7,7.2506]
[1729526143402,11.04116901,164.81,164.77,3.0348]
[1729526143705,8.00696901,164.81,164.7,7.2506]
[1729526143911,3.0345,164.8,164.76,3.035]
[1729526144408,3.0345,164.8,164.7,7.2506]
[1729526144915,11.04116901,164.81,164.7,7.2506]
[1729526145101,8.00696901,164.81,164.73,3.0356]
[1729526145306,3.0345,164.8,164.7,7.2506]
[1729526145708,3.0345,164.8,164.76,3.035]
[1729526146515,3.0345,164.8,164.77,3.0349]
[1729526148406,3.02696901,164.81,164.77,3.0349]
[1729526148608,3.0343,164.81,164.77,3.0349]
[1729526148804,6.01959081,164.81,164.77,3.0349]
[1729526149513,3.0344,164.8,164.77,3.0349]
[1729526152419,6.01959081,164.81,164.77,3.0349]
[1729526152620,6.3302,164.82,164.77,3.0349]
[1729526152917,9.33353361,164.82,164.77,3.0349]
[1729526153911,3.0344,164.8,164.77,3.0349]
[1729526154811,3.0344,164.8,164.7,7.2506]
[1729526155215,9.33353361,164.82,164.7,7.2506]
[1729526155416,7.38763361,164.82,164.7,13.323]
[1729526155817,7.38763361,164.82,164.79,3.0345]
[1729526156718,7.38763361,164.82,164.8,3.0343]
[1729526157314,4.35353361,164.82,164.74,4.98]
[1729526157519,3.00333361,164.82,164.81,3.0342]
[1729526157714,22.6852956,164.84,164.74,4.98]
[1729526158021,14.6715956,164.84,164.82,3.0338]
[1729526158318,17.64128773,164.84,164.82,3.0338]
[1729526159315,17.64128773,164.84,164.83,3.0338]
[1729526160116,14.6715956,164.84,164.83,3.0338]
[1729526160316,16.57765983,164.85,164.78,4.98]
[1729526160516,19.66448942,164.85,164.84,3.0336]
[1729526160717,16.31859542,164.87,164.82,4.98]
[1729526161321,15.06154978,164.88,164.82,4.98]
[1729526161921,15.06154978,164.88,164.87,3.0331]
[1729526163218,12.17042286,164.91,164.86,4.98]
[1729526164222,15.78533485,164.93,164.86,4.98]
[1729526164422,15.78533485,164.93,164.87,1.2282]
[1729526164627,15.78533485,164.93,164.87,2.2308]
[1729526164825,18.85112965,164.93,164.88,4.96]
[1729526165019,18.85112965,164.93,164.92,3.0322]
[1729526166031,18.3375899,164.95,164.94,3.0318]
[1729526168732,18.3375899,164.95,164.87,2.2308]
[1729526168924,18.3375899,164.95,164.88,4.96]
[1729526169729,18.3375899,164.95,164.83,1.0028]
[1729526170030,18.3375899,164.95,164.84,4.96]
[1729526170232,21.3692899,164.95,164.92,3.0321]
[1729526170432,18.3375899,164.95,164.9,4.96]
[1729526171229,18.3375899,164.95,164.93,3.0319]
[1729526171931,21.3692899,164.95,164.92,3.0321]
[1729526172834,18.3375899,164.95,164.93,3.0319]
[1729526174439,18.3375899,164.95,164.9,4.96]
[1729526174741,4.272,164.94,164.91,3.0323]
[1729526176635,3.0322,164.92,164.89,3.0327]
[1729526177832,3.0321,164.93,164.9,3.0325]
[1729526178044,1.2402,164.94,164.87,4.96]
[1729526178435,3.0321,164.93,164.9,3.0325]
[1729526178840,1.2402,164.94,164.87,4.96]
[1729526179040,4.272,164.94,164.91,3.0322]
[1729526179643,3.032,164.93,164.9,3.0324]
[1729526179834,3.032,164.93,164.87,4.96]
[1729526180034,1.2402,164.94,164.87,4.96]
[1729526180238,1.2402,164.94,164.92,3.0321]
[1729526180438,1.2402,164.94,164.87,4.96]
[1729526181139,1.2402,164.94,164.92,3.0321]
[1729526182845,3.032,164.93,164.91,3.0323]
[1729526183247,1.2402,164.94,164.77,6.0697]
[1729526183450,1.2402,164.94,164.79,7.99246316]
[1729526183451,1.2409,164.92,164.79,7.99246316]
[1729526183644,1.2409,164.92,164.79,6.2792]
[1729526183954,3.0326,164.9,164.8,4.96]
[1729526184139,1.2409,164.92,164.79,8.3905]
[1729526184347,3.033,164.88,164.8,4.96]
[1729526184548,1.2409,164.92,164.81,4.96]
[1729526184744,3.0334,164.86,164.83,3.0338]
[1729526185046,3.0334,164.86,164.81,4.96]
[1729526185047,4.96,164.89,164.73,1.3192]
[1729526185247,4.96,164.89,164.74,4.96]
[1729526185248,1.2331,164.85,164.74,4.96]
[1729526185443,3.0339,164.83,164.8,3.0342]
[1729526185950,1.2331,164.85,164.74,4.96]
[1729526186146,9.26038404,164.85,164.75,4.96]
[1729526186341,6.1931,164.85,164.74,4.96]
[1729526186654,3.03995452,164.85,164.78,3.0346]
[1729526186845,4.96,164.89,164.73,4.96]
[1729526187154,3.0336,164.85,164.81,3.0341]
[1729526187356,6.12821357,164.85,164.73,4.96]
[1729526187839,6.12821357,164.85,164.81,3.0341]
[1729526188640,3.0339,164.83,164.79,3.0344]
[1729526189150,3.01802804,164.83,164.79,3.0344]
[1729526189351,4.96,164.87,164.79,3.0344]
[1729526189740,7.95343446,164.87,164.79,3.0344]
[1729526189946,3.0341,164.82,164.79,3.0344]
[1729526190147,7.95343446,164.87,164.8,3.0343]
[1729526190851,3.034,164.83,164.8,3.0343]
[1729526191547,3.034,164.82,164.79,3.0345]
[1729526195547,3.034,164.82,164.8,3.0344]
[1729526195955,3.034,164.82,164.76,4.96]
[1729526196152,3.034,164.82,164.79,3.0344]
[1729526197350,3.034,164.82,164.76,4.96]
[1729526197760,2.48,164.85,164.76,4.96]
[1729526198060,5.5136,164.85,164.76,4.96]
[1729526198263,5.5136,164.85,164.82,3.0339]
[1729526198556,4.347,164.86,164.76,4.96]
[1729526198751,4.347,164.86,164.83,3.0337]
[1729526199963,4.347,164.86,164.77,2.97679294]
[1729526200558,3.0333,164.86,164.77,2.97679294]
[1729526200762,6.02663446,164.87,164.84,3.0335]
[1729526200955,3.0332,164.87,164.84,3.0335]
[1729526201150,6.05159455,164.87,164.84,3.0335]
[1729526202268,18.3375899,164.95,164.9,12.0]
[1729526202760,3.9377,164.94,164.9,12.0]
[1729526203067,3.032,164.93,164.9,12.0]
[1729526203761,6.09629656,164.93,164.9,12.0]
[1729526204354,8.8977,164.94,164.81,4.96]
[1729526204556,11.92768907,164.94,164.83,3.0337]
[1729526204959,3.033,164.88,164.81,4.96]
[1729526205160,4.96,164.89,164.81,4.96]
[1729526205356,1.2969,164.88,164.78,4.96]
[1729526205561,3.0334,164.86,164.78,4.96]
[1729526205863,3.0334,164.86,164.82,3.0339]
[1729526206060,1.2424,164.87,164.78,4.96]
[1729526206665,1.2424,164.87,164.85,3.0334]
[1729526207561,1.2424,164.87,164.76,4.96]
[1729526208165,3.0338,164.84,164.8,3.0342]
[1729526208460,3.02780897,164.84,164.76,4.96]
[1729526208662,4.96,164.85,164.76,4.96]
[1729526208865,2.9607065,164.84,164.76,4.96]
[1729526209371,2.9607065,164.84,164.83,3.0338]
[1729526209666,9.2355,164.87,164.76,4.96]
[1729526211371,6.2024,164.87,164.79,3.0345]
[1729526211570,3.0334,164.86,164.76,4.96]
[1729526211772,3.07025147,164.85,164.76,4.96]
[1729526212376,9.2355,164.87,164.76,4.96]
[1729526213462,9.2355,164.87,164.84,3.0336]
[1729526215069,6.2024,164.87,164.86,3.0333]
[1729526215267,6.2024,164.87,164.77,6.0699]
[1729526216274,3.0333,164.86,164.83,3.0337]
[1729526216477,3.03484677,164.85,164.77,6.0699]
[1729526216864,6.2024,164.87,164.76,4.96]
[1729526217177,1.2424,164.87,164.76,4.96]
[1729526217372,3.0336,164.85,164.83,3.0338]
[1729526217668,6.07470305,164.85,164.83,3.0338]
[1729526217869,3.0336,164.85,164.83,3.0338]
[1729526218269,3.10060752,164.85,164.76,4.96]
[1729526218571,1.2424,164.87,164.76,4.96]
[1729526218969,3.0338,164.84,164.81,3.034]
[1729526219162,6.14321175,164.84,164.81,3.034]
[1729526219764,3.10941175,164.84,164.77,4.96]
[1729526220076,1.2424,164.87,164.83,3.0338]
[1729526220477,3.0334,164.86,164.83,3.0338]
[1729526220665,1.2424,164.87,164.77,4.96]
[1729526220870,1.2424,164.87,164.78,6.0694]
[1729526221577,4.2755,164.87,164.84,3.0335]
[1729526221975,4.2755,164.87,164.84,3.0336]
[1729526222177,1.2969,164.88,164.78,6.0694]
[1729526222367,6.2676,164.92,164.78,2.5336]
[1729526222569,1.3076,164.92,164.89,3.0326]
[1729526222972,4.3399,164.92,164.89,3.0326]
[1729526223171,4.96,164.93,164.85,1.3151]
[1729526223477,9.22048907,164.94,164.85,1.3151]
[1729526223873,12.25228907,164.94,164.91,3.0322]
[1729526224173,3.02998907,164.94,164.85,1.3151]
[1729526224375,3.0322,164.92,164.88,3.0328]
[1729526224572,2.99289168,164.91,164.85,1.3151]
[1729526224973,3.0321,164.93,164.9,3.0324]
[1729526225173,3.06967139,164.93,164.85,1.3151]
[1729526225481,109.65244542,164.95,164.85,1.3151]
[1729526225679,3.0319,164.94,164.91,3.0323]
[1729526225876,112.68691347,164.95,164.91,3.0323]
[1729526226077,21.37205795,164.95,164.85,1.3151]
[1729526226877,3.032,164.93,164.9,3.0324]
[1729526227482,3.0322,164.92,164.88,3.0328]
[1729526227685,3.0322,164.92,164.85,1.3151]
[1729526227980,21.37205795,164.95,164.85,1.3151]
[1729526228181,21.37205795,164.95,164.85,2.6229]
[1729526228879,21.37205795,164.95,164.86,1.2994]
[1729526229078,21.37205795,164.95,164.93,3.0319]
[1729526230179,18.3375899,164.95,164.94,3.0318]
[1729526230381,16.3017899,164.95,164.94,3.0318]
[1729526230678,15.52452284,164.99,164.94,4.96]
[1729526230679,12.50443843,164.99,164.94,4.96]
[1729526231373,12.50443843,164.99,164.98,3.0311]
[1729526232780,1.55753843,164.99,164.98,7.9911]
[1729526233083,16.6832675,165.03,165.02,3.0303]
[1729526233282,16.6832675,165.03,165.02,7.9903]
[1729526233581,16.6832675,165.03,165.02,3.0303]
[1729526234478,12.92294739,165.04,165.03,3.0302]
[1729526234675,12.92294739,165.04,165.01,4.96]
[1729526234880,12.92294739,165.04,164.99,3.0307]
[1729526235077,12.92294739,165.04,164.99,4.96]
[1729526236176,12.92294739,165.04,165.0,3.0306]
[1729526237278,12.92294739,165.04,164.99,4.96]
[1729526237279,12.92294739,165.04,165.02,3.0303]
[1729526237477,12.92294739,165.04,164.99,4.96]
[1729526237776,12.92294739,165.04,165.02,3.0302]
[1729526237975,12.92294739,165.04,164.99,4.96]
[1729526238379,12.92294739,165.04,165.0,3.0306]
[1729526238576,12.92294739,165.04,164.99,4.96]
[1729526239080,12.92294739,165.04,165.03,3.0302]
[1729526239279,12.92294739,165.04,165.03,7.9902]
[1729526239478,11.73675951,165.06,165.03,4.96]
[1729526239976,11.73675951,165.06,165.05,3.0298]
[1729526240179,18.37743805,165.07,165.03,4.96]
[1729526241287,18.37743805,165.07,165.06,3.0296]
[1729526242285,16.11983665,165.09,165.08,3.0292]
[1729526242483,16.23869008,165.13,165.08,4.96]
[1729526242984,16.23869008,165.13,165.1,3.0289]
[1729526243687,16.23869008,165.13,165.04,65.5]
[1729526243688,16.23869008,165.13,165.09,4.96]
[1729526244087,18.89209008,165.13,165.08,4.94]
[1729526245984,3.0287,165.12,165.09,3.029]
[1729526246392,18.89209008,165.13,165.09,3.029]
[1729526246585,21.92049008,165.13,165.09,3.029]
[1729526247292,3.0285,165.12,165.09,3.029]
[1729526247587,18.89209008,165.13,165.04,65.5]
[1729526247889,1.3275,165.12,165.05,4.94]
[1729526248194,1.3275,165.12,165.06,3.0295]
[1729526248389,4.356,165.12,165.05,4.94]
[1729526248690,4.356,165.12,165.08,3.0291]
[1729526249091,4.356,165.12,165.05,4.94]
[1729526249486,1.3275,165.12,165.05,4.94]
[1729526249689,21.92059008,165.13,165.05,4.94]
[1729526249993,18.89209008,165.13,165.05,4.94]
[1729526250192,21.92049008,165.13,165.05,4.94]
[1729526250687,21.92049008,165.13,165.09,3.0289]
[1729526251289,18.89209008,165.13,165.09,4.94]
[1729526251486,3.0287,165.12,165.09,4.94]
[1729526252489,21.92049008,165.13,165.1,3.0289]
[1729526252896,18.89209008,165.13,165.09,4.94]
[1729526253495,3.0286,165.12,165.09,7.969]
[1729526253687,18.89209008,165.13,165.09,4.94]
[1729526254588,18.89209008,165.13,165.04,65.5]
[1729526254589,21.92039008,165.13,165.06,3.0296]
[1729526254894,18.89209008,165.13,165.07,5.0]
[1729526255086,3.029,165.1,165.07,8.0293]
[1729526255685,3.0294,165.08,165.05,3.0297]
[1729526255890,3.0294,165.08,165.04,65.5]
[1729526255891,1.2918,165.1,165.04,5.0]
[1729526256490,3.0293,165.08,165.05,3.0297]
[1729526257087,1.2918,165.1,165.05,3.0297]
[1729526257293,3.0295,165.07,165.05,3.0297]
[1729526257496,1.2918,165.1,165.05,3.0297]
[1729526257697,1.2918,165.1,165.04,5.0]
[1729526257993,1.2918,165.1,165.0,112.49310055]
[1729526258192,6.2918,165.1,165.0,112.49310055]
[1729526258396,3.0303,165.03,165.0,115.52370055]
[1729526260003,5.6158,165.04,165.01,3.0305]
[1729526260202,2.5857,165.04,165.0,112.49310055]
[1729526260499,3.0303,165.03,165.0,3.0306]
[1729526260695,2.5857,165.04,164.95,65.48]
[1729526260898,1.3252,165.02,164.96,5.02]
[1729526262094,1.3252,165.02,164.87,71.546]
[1729526262493,3.0314,164.97,164.93,3.0319]
[1729526262705,1.3252,165.02,164.93,3.0319]
[1729526263398,1.3252,165.02,164.88,5.02]
[1729526264008,3.0311,164.98,164.93,3.032]
[1729526264196,1.3252,165.02,164.93,3.032]
[1729526264396,5.02,165.01,164.93,3.032]
[1729526264605,3.0314,164.97,164.93,3.032]
[1729526265103,5.02,165.01,164.92,5.02]
[1729526266005,3.0314,164.97,164.93,3.0318]
[1729526267706,3.0314,164.97,164.94,3.0318]
[1729526268402,3.0305,165.01,164.98,3.031]
[1729526268610,1.3252,165.02,164.97,5.02]
[1729526268798,3.09598708,165.05,164.97,5.02]
[1729526269106,2.5714,165.07,164.97,5.02]
[1729526269296,5.62707802,165.07,164.97,5.02]
[1729526269502,3.0301,165.04,165.0,3.0305]
[1729526269704,12.0,165.08,165.01,5.02]
[1729526269902,16.23869008,165.13,165.01,5.02]
[1729526270207,16.23869008,165.13,165.01,8.06475947]
[1729526270708,16.23869008,165.13,165.09,3.029]
[1729526271005,16.23869008,165.13,165.08,5.02]
[1729526271204,18.10090122,165.11,165.07,5.02]
[1729526271411,15.07210122,165.11,165.07,5.02]
[1729526271999,3.0291,165.09,165.04,8.0499]
[1729526272204,3.0291,165.09,165.04,5.02]
[1729526272402,15.07210122,165.11,165.04,5.02]
[1729526272608,3.0289,165.1,165.06,3.0295]
[1729526273009,18.10080122,165.11,165.06,3.0295]
[1729526273405,18.10080122,165.11,165.04,5.02]
[1729526273406,15.07210122,165.11,165.04,5.02]
[1729526273706,15.07210122,165.11,165.1,3.0289]
[1729526274113,15.07210122,165.11,165.08,5.02]
[1729526274411,15.07210122,165.11,165.1,3.0289]
[1729526276809,16.23869008,165.13,165.08,5.02]
[1729526277110,16.23869008,165.13,165.12,3.0285]
[1729526277313,15.17089909,165.14,165.12,5.02]
[1729526277611,15.17089909,165.14,165.13,3.0283]
[1729526278713,15.91858209,165.18,165.12,5.02]
[1729526279310,15.91858209,165.18,165.17,3.0276]
[1729526279505,15.91858209,165.18,165.17,8.0476]
[1729526279916,15.91858209,165.18,165.17,3.0276]
[1729526280517,15.91858209,165.18,165.14,5.0]
[1729526280717,1.2928,165.17,165.14,5.0]
[1729526281306,2.5994,165.17,165.14,5.0]
[1729526281506,3.0282,165.14,165.13,5.0]
[1729526281813,2.5994,165.17,165.13,5.0]
[1729526282010,5.6271,165.17,165.13,8.0282]
[1729526282215,2.5994,165.17,165.13,5.0]
[1729526282607,5.627,165.17,165.13,5.0]
[1729526282810,2.5994,165.17,165.13,5.0]
[1729526283216,2.5994,165.17,165.15,3.0278]
[1729526283524,2.5994,165.17,165.13,5.0]
[1729526283724,2.5994,165.17,165.14,3.0281]
[1729526283921,2.5994,165.17,165.13,5.0]
[1729526284327,2.5994,165.17,165.14,3.0281]
[1729526284825,2.5994,165.17,165.13,5.0]
[1729526285027,2.5994,165.17,165.15,3.0279]
[1729526285330,2.5994,165.17,165.13,5.0]
[1729526285817,15.91858209,165.18,165.13,5.0]
[1729526286215,15.91858209,165.18,165.17,3.0276]
[1729526286415,15.91858209,165.18,165.17,8.1476]
[1729526288923,12.35642035,165.21,165.2,3.027]
[1729526290728,12.35642035,165.21,165.1,6.0576]
[1729526290931,12.35642035,165.21,165.11,5.12]
[1729526291728,12.35642035,165.21,165.2,3.027]
[1729526291929,12.35642035,165.21,165.2,8.147]
[1729526298230,15.38882638,165.24,165.23,3.0265]
[1729526298426,6.0456,165.44,165.2,5.12]
[1729526298630,11.08900346,165.41,165.21,5.1]
[1729526298828,2.4834,165.41,165.3,3.0251]
[1729526299026,3.0243,165.35,165.29,5.1]
[1729526299334,3.00599109,165.35,165.29,5.1]
[1729526299537,3.0242,165.36,165.29,5.1]
[1729526299737,3.05051308,165.35,165.29,5.1]
[1729526300036,3.0243,165.36,165.29,5.1]
[1729526300231,2.96510356,165.35,165.29,5.1]
[1729526300431,2.96510356,165.35,165.31,3.0249]
[1729526300635,3.0246,165.34,165.29,5.1]
[1729526300835,2.5574,165.33,165.16,6.0556]
[1729526301037,2.5574,165.33,165.27,3.0256]
[1729526301231,3.10230396,165.32,165.25,5.1]
[1729526301733,3.0252,165.3,165.26,3.0259]
[1729526301934,3.04208574,165.3,165.15,68.42751598]
[1729526302147,1.2295,165.29,165.16,5.1]
[1729526304339,4.18346639,165.29,165.16,5.1]
[1729526304537,1.2295,165.29,165.16,5.1]
[1729526304737,3.0263,165.25,165.21,3.0267]
[1729526304939,3.0263,165.25,165.16,5.1]
[1729526305333,3.0263,165.25,165.18,3.0273]
[1729526305543,3.0263,165.25,165.16,5.1]
[1729526305843,2.6562,165.26,165.16,5.1]
[1729526306037,2.6562,165.26,165.21,3.0267]
[1729526306429,3.0262,165.25,165.21,3.0267]
[1729526306831,2.6562,165.26,165.21,3.0267]
[1729526307032,2.6562,165.26,165.16,5.1]
[1729526307230,2.6562,165.26,165.22,3.0266]
[1729526307441,3.0262,165.25,165.16,5.1]
[1729526307936,3.0262,165.25,165.21,3.0267]
[1729526308137,3.0263,165.24,165.21,3.0267]
[1729526308840,3.0263,165.24,165.21,3.0268]
[1729526309839,3.0267,165.22,165.19,3.0271]
[1729526310436,2.6562,165.26,165.06,77.5379]
[1729526310633,2.6562,165.26,165.07,5.1]
[1729526310833,3.0262,165.25,165.12,3.0284]
[1729526311032,3.0262,165.25,165.13,5.1]
[1729526311235,2.6562,165.26,165.13,5.1]
[1729526311845,3.0266,165.23,165.13,5.1]
[1729526312043,3.0266,165.23,165.2,3.027]
[1729526312241,2.6562,165.26,165.2,3.027]
[1729526312540,2.6562,165.26,165.17,5.1]
[1729526313247,2.6562,165.26,165.19,3.0271]
[1729526313547,3.0266,165.23,165.17,5.1]
[1729526313749,3.0266,165.23,165.2,3.0269]
[1729526314346,2.6562,165.26,165.17,5.1]
[1729526314548,3.0264,165.24,165.21,3.0268]
[1729526315246,3.0264,165.24,165.17,5.1]
[1729526315247,3.0266,165.23,165.2,3.027]
[1729526315644,2.6562,165.26,165.12,3.0284]
[1729526315836,3.027,165.21,165.18,3.0274]
[1729526316040,2.6562,165.26,165.13,5.1]
[1729526316642,3.0269,165.21,165.18,3.0273]
[1729526317235,3.0274,165.19,165.16,3.0277]
[1729526317437,5.1,165.23,165.13,5.1]
[1729526317645,5.1,165.23,165.07,9.11775814]
[1729526317646,2.6522,165.18,165.11,5.1]
[1729526317848,2.6522,165.18,165.14,3.028]
[1729526317849,2.98550881,165.17,165.14,3.028]
[1729526318042,2.98550881,165.17,165.11,5.1]
[1729526318342,2.98550881,165.17,165.14,3.0281]
[1729526318343,6.01310881,165.17,165.14,3.0281]
[1729526318746,2.6522,165.18,165.06,65.42]
[1729526318946,3.0278,165.16,165.13,3.0282]
[1729526319952,3.0278,165.16,165.14,3.0281]
[1729526320650,3.0277,165.17,165.14,3.0281]
[1729526320855,5.62316309,165.18,165.11,5.1]
[1729526321055,1.3097,165.22,165.11,5.1]
[1729526321252,3.027,165.21,165.11,5.1]
[1729526321554,1.3097,165.22,165.12,6.057]
[1729526321856,3.08086529,165.27,165.11,5.1]
[1729526322152,3.08086529,165.27,165.19,3.0272]
[1729526322153,5.1,165.27,165.19,3.0272]
[1729526322454,3.0264,165.24,165.2,3.027]
[1729526322654,8.07842167,165.27,165.17,5.1]
[1729526322852,3.0263,165.25,165.17,5.1]
[1729526323048,8.07842167,165.27,165.17,5.1]
[1729526323344,8.07842167,165.27,165.19,3.0272]
[1729526323549,3.0266,165.23,165.19,3.0272]
[1729526323850,8.07842167,165.27,165.17,3.0275]
[1729526323851,1.2536,165.22,165.17,3.0275]
[1729526324050,1.2536,165.22,165.14,5.1]
[1729526324351,3.027,165.21,165.16,3.0278]
[1729526324551,3.027,165.21,165.14,5.1]
[1729526324751,4.2803,165.22,165.14,5.1]
[1729526324952,4.2803,165.22,165.18,3.0273]
[1729526326355,2.5743,165.21,165.18,3.0273]
[1729526326552,2.5743,165.21,165.14,5.1]
[1729526327449,2.5743,165.21,165.18,3.0272]
[1729526327855,5.6012,165.21,165.18,3.0272]
[1729526328060,5.6012,165.21,165.19,3.0272]
[1729526329255,2.5743,165.21,165.2,3.027]
[1729526329459,2.5743,165.21,165.14,5.1]
[1729526329956,2.5743,165.21,165.19,3.0272]
[1729526330857,5.6012,165.21,165.19,3.0272]
[1729526331057,2.5743,165.21,165.17,3.0275]
[1729526331351,5.1,165.2,165.08,1.224]
[1729526331668,5.1,165.2,165.16,3.0278]
[1729526332053,5.1,165.2,165.09,5.1]
[1729526332553,2.5743,165.21,165.1,6.0576]